lending/lending_fUSD_20240410
["ID","MTS","AMOUNT","RATE_DAILY","PERIOD"]
[322076918,1712743869247,-500.0,0.00054795,2]
[322076919,1712743869256,-500.0,0.00054795,2]
[322076920,1712743869265,-500.0,0.00054795,2]
[322076921,1712743869275,-500.0,0.00054795,2]
[322076922,1712743869284,-500.0,0.00054795,2]
[322076923,1712743869293,-500.0,0.00054795,2]
[322076924,1712743869302,-500.0,0.00054795,2]
[322076925,1712743869311,-500.0,0.00054795,2]
[322076926,1712743869320,-500.0,0.00054795,2]
[322076927,1712743869332,-500.0,0.00054795,2]
[322076928,1712743869341,-500.0,0.00054795,2]
[322076929,1712743869350,-500.0,0.00054795,2]
[322076930,1712743869360,-500.0,0.00054795,2]
[322076931,1712743869369,-500.0,0.00054795,2]
[322076932,1712743869377,-500.0,0.00054795,2]
[322076933,1712743869386,-500.0,0.00054795,2]
[322076934,1712743869395,-500.0,0.00054795,2]
[322076935,1712743869405,-500.0,0.00054795,2]
[322076936,1712743869415,-500.0,0.00054795,2]
[322076937,1712743869424,-500.0,0.00054795,2]
[322076938,1712743869434,-500.0,0.00054795,2]
[322076939,1712743869443,-500.0,0.00054795,2]
[322076940,1712743869452,-500.0,0.00054795,2]
[322076941,1712743869461,-500.0,0.00054795,2]
[322076942,1712743869470,-500.0,0.00054795,2]
[322076943,1712743869480,-500.0,0.00054795,2]
[322076944,1712743869488,-500.0,0.00054795,2]
[322076945,1712743869497,-500.0,0.00054795,2]
[322076946,1712743869507,-500.0,0.00054795,2]
[322076947,1712743869516,-500.0,0.00054795,2]
[322076948,1712743869524,-500.0,0.00054795,2]
[322076949,1712743869533,-500.0,0.00054795,2]
[322076950,1712743869543,-500.0,0.00054795,2]
[322076951,1712743869552,-500.0,0.00054795,2]
[322076952,1712743869561,-500.0,0.00054795,2]
[322076953,1712743869570,-500.0,0.00054795,2]
[322076954,1712743869580,-500.0,0.00054795,2]
[322076955,1712743869589,-500.0,0.00054795,2]
[322076956,1712743869598,-500.0,0.00054795,2]
[322076957,1712743869607,-500.0,0.00054795,2]
[322076958,1712743869616,-500.0,0.00054795,2]
[322076959,1712743869625,-500.0,0.00054795,2]
[322076960,1712743869634,-500.0,0.00054795,2]
[322076961,1712743869644,-500.0,0.00054795,2]
[322076962,1712743869653,-500.0,0.00054795,2]
[322076963,1712743869662,-500.0,0.00054795,2]
[322076964,1712743869671,-500.0,0.00054795,2]
[322076965,1712743869680,-500.0,0.00054795,2]
[322076966,1712743869689,-500.0,0.00054795,2]
[322076967,1712743869698,-500.0,0.00054795,2]
[322076968,1712743869707,-500.0,0.00054795,2]
[322076969,1712743869716,-500.0,0.00054795,2]
[322076970,1712743869725,-500.0,0.00054795,2]
[322076971,1712743869736,-500.0,0.00054795,2]
[322076972,1712743869745,-500.0,0.00054795,2]
[322076973,1712743869754,-500.0,0.00054795,2]
[322076974,1712743869763,-500.0,0.00054795,2]
[322076975,1712743869772,-500.0,0.00054795,2]
[322076976,1712743869781,-500.0,0.00054795,2]
[322076977,1712743869791,-500.0,0.00054795,2]
[322076978,1712743869800,-500.0,0.00054795,2]
[322076979,1712743869809,-500.0,0.00054795,2]
[322076980,1712743869818,-500.0,0.00054795,2]
[322076981,1712743869829,-500.0,0.00054795,2]
[322076982,1712743869838,-500.0,0.00054795,2]
[322076983,1712743869846,-500.0,0.00054795,2]
[322076984,1712743869855,-500.0,0.00054795,2]
[322076985,1712743869865,-500.0,0.00054795,2]
[322076986,1712743869874,-500.0,0.00054795,2]
[322076987,1712743869883,-500.0,0.00054795,2]
[322076988,1712743869892,-500.0,0.00054795,2]
[322076989,1712743869902,-500.0,0.00054795,2]
[322076990,1712743869911,-500.0,0.00054795,2]
[322076991,1712743869920,-500.0,0.00054795,2]
[322076992,1712743869931,-500.0,0.00054795,2]
[322076993,1712743869940,-500.0,0.00054795,2]
[322076994,1712743869949,-500.0,0.00054795,2]
[322076995,1712743869959,-500.0,0.00054795,120]
[322076996,1712743869968,-500.0,0.00054795,120]
[322076997,1712743869976,-500.0,0.00054795,120]
[322076998,1712743869986,-500.0,0.00054795,120]
[322076999,1712743869995,-675.0,0.00054795,2]
[322077000,1712743870005,-1000.0,0.00054795,13]
[322077001,1712743870014,-1000.0,0.00054795,13]
[322077002,1712743870023,-1000.0,0.00054795,13]
[322077003,1712743870033,-1000.0,0.00054795,13]
[322077004,1712743870042,-1000.0,0.00054795,13]
[322077005,1712743870051,-1000.0,0.00054795,13]
[322077006,1712743870060,-1000.0,0.00054795,13]
[322077007,1712743870070,-1000.0,0.00054795,13]
[322077008,1712743870081,-1000.0,0.00054795,13]
[322077009,1712743870090,-1000.0,0.00054795,13]
[322077010,1712743870099,-1000.0,0.00054795,13]
[322077011,1712743870108,-1000.0,0.00054795,13]
[322077012,1712743870117,-1000.0,0.00054795,13]
[322077013,1712743870126,-500.0,0.00054795,2]
[322077014,1712743870135,-1000.0,0.00054795,13]
[322077015,1712743870145,-1000.0,0.00054795,13]
[322077016,1712743870154,-500.0,0.00054795,2]
[322077017,1712743870163,-500.0,0.00054795,2]
[322077018,1712743870172,-500.0,0.00054795,2]
[322077019,1712743870181,-500.0,0.00054795,2]
[322077020,1712743870190,-500.0,0.00054795,2]
[322077021,1712743870199,-500.0,0.00054795,2]
[322077022,1712743870208,-500.0,0.00054795,2]
[322077023,1712743870217,-500.0,0.00054795,2]
[322077024,1712743870227,-500.0,0.00054795,2]
[322077025,1712743870237,-500.0,0.00054795,2]
[322077026,1712743870247,-500.0,0.00054795,2]
[322077027,1712743870257,-500.0,0.00054795,2]
[322077028,1712743870266,-500.0,0.00054795,2]
[322077029,1712743870275,-500.0,0.00054795,2]
[322077030,1712743870285,-500.0,0.00054795,2]
[322077031,1712743870295,-500.0,0.00054795,2]
[322077032,1712743870304,-500.0,0.00054795,2]
[322077033,1712743870314,-500.0,0.00054795,2]
[322077034,1712743870324,-500.0,0.00054795,2]
[322077035,1712743870335,-500.0,0.00054795,2]
[322077036,1712743870344,-500.0,0.00054795,2]
[322077037,1712743870354,-500.0,0.00054795,2]
[322077038,1712743870364,-500.0,0.00054795,2]
[322077039,1712743870373,-500.0,0.00054795,2]
[322077040,1712743870383,-500.0,0.00054795,2]
[322077041,1712743870393,-500.0,0.00054795,2]
[322077042,1712743870405,-500.0,0.00054795,2]
[322077043,1712743870414,-500.0,0.00054795,2]
[322077044,1712743870424,-500.0,0.00054795,2]
[322077045,1712743870433,-500.0,0.00054795,2]
[322077046,1712743870443,-500.0,0.00054795,2]
[322077047,1712743870452,-500.0,0.00054795,2]
[322077048,1712743870461,-500.0,0.00054795,2]
[322077049,1712743870471,-500.0,0.00054795,2]
[322077050,1712743870481,-500.0,0.00054795,2]
[322077051,1712743870490,-500.0,0.00054795,2]
[322077052,1712743870500,-500.0,0.00054795,2]
[322077053,1712743870510,-500.0,0.00054795,2]
[322077054,1712743870519,-500.0,0.00054795,2]
[322077055,1712743870528,-500.0,0.00054795,2]
[322077056,1712743870538,-500.0,0.00054795,2]
[322077057,1712743870547,-500.0,0.00054795,2]
[322077058,1712743870557,-500.0,0.00054795,2]
[322077059,1712743870567,-500.0,0.00054795,2]
[322077060,1712743870578,-500.0,0.00054795,2]
[322077061,1712743870588,-500.0,0.00054795,2]
[322077062,1712743870598,-500.0,0.00054795,2]
[322077063,1712743870608,-500.0,0.00054795,2]
[322077064,1712743870617,-500.0,0.00054795,2]
[322077065,1712743870627,-500.0,0.00054795,2]
[322077066,1712743870637,-500.0,0.00054795,2]
[322077067,1712743870647,-500.0,0.00054795,2]
[322077068,1712743870656,-500.0,0.00054795,2]
[322077069,1712743870666,-500.0,0.00054795,2]
[322077070,1712743870675,-500.0,0.00054795,2]
[322077071,1712743870685,-500.0,0.00054795,2]
[322077072,1712743870695,-500.0,0.00054795,2]
[322077073,1712743870705,-500.0,0.00054795,2]
[322077074,1712743870714,-500.0,0.00054795,2]
[322077075,1712743870724,-500.0,0.00054795,2]
[322077076,1712743870733,-500.0,0.00054795,2]
[322077077,1712743870743,-500.0,0.00054795,2]
[322077078,1712743870753,-500.0,0.00054795,2]
[322077079,1712743870763,-500.0,0.00054795,2]
[322077080,1712743870772,-500.0,0.00054795,2]
[322077081,1712743870782,-500.0,0.00054795,2]
[322077082,1712743870792,-500.0,0.00054795,2]
[322077083,1712743870801,-500.0,0.00054795,2]
[322077084,1712743870810,-500.0,0.00054795,2]
[322077085,1712743870819,-500.0,0.00054795,2]
[322077086,1712743870829,-500.0,0.00054795,2]
[322077087,1712743870839,-500.0,0.00054795,2]
[322077088,1712743870848,-500.0,0.00054795,2]
[322077089,1712743870857,-500.0,0.00054795,2]
[322077090,1712743870867,-500.0,0.00054795,2]
[322077091,1712743870876,-500.0,0.00054795,2]
[322077092,1712743870885,-500.0,0.00054795,2]
[322077093,1712743870895,-500.0,0.00054795,2]
[322077094,1712743870904,-500.0,0.00054795,2]
[322077095,1712743870914,-500.0,0.00054795,2]
[322077096,1712743870923,-500.0,0.00054795,2]
[322077097,1712743870933,-500.0,0.00054795,2]
[322077098,1712743870942,-500.0,0.00054795,2]
[322077099,1712743870951,-500.0,0.00054795,2]
[322077100,1712743870961,-500.0,0.00054795,2]
[322077101,1712743870971,-500.0,0.00054795,2]
[322077102,1712743870981,-500.0,0.00054795,2]
[322077103,1712743870990,-500.0,0.00054795,2]
[322077104,1712743871000,-500.0,0.00054795,2]
[322077105,1712743871009,-500.0,0.00054795,2]
[322077106,1712743871019,-500.0,0.00054795,2]
[322077107,1712743871028,-500.0,0.00054795,2]
[322077108,1712743871037,-500.0,0.00054795,2]
[322077109,1712743871046,-500.0,0.00054795,2]
[322077110,1712743871056,-500.0,0.00054795,2]
[322077111,1712743871064,-500.0,0.00054795,2]
[322077112,1712743871074,-500.0,0.00054795,2]
[322077113,1712743871085,-500.0,0.00054795,2]
[322077114,1712743871210,-500.0,0.00054795,2]
[322077115,1712743871220,-1000.0,0.00054795,13]
[322077116,1712743871230,-1000.0,0.00054795,13]
[322077117,1712743871243,-1000.0,0.00054795,13]
[322077118,1712743871252,-1000.0,0.00054795,13]
[322077119,1712743871261,-1000.0,0.00054795,13]
[322077120,1712743871271,-1000.0,0.00054795,13]
[322077121,1712743871282,-1000.0,0.00054795,13]
[322077122,1712743871292,-1000.0,0.00054795,13]
[322077123,1712743871301,-1000.0,0.00054795,13]
[322077124,1712743871311,-1000.0,0.00054795,13]
[322077125,1712743871320,-1012.0,0.00054795,13]
[322077126,1712743871331,-157.62217767,0.000548,120]
[322077127,1712743871341,-1000.0,0.000548,120]
[322077128,1712743871350,-1000.0,0.000548,120]
[322077129,1712743871359,-5000.0,0.000548,120]
[322077130,1712743871369,-290.45132174,0.000549,120]
[322077131,1712743871378,-13851.73030104,0.000549,14]
[322077132,1712743871388,-33338.46053426,0.00054922,120]
[322077133,1712743871397,-100000.0,0.00055,55]
[322077134,1712743871407,-13586.13552597,0.00055,120]
[322077135,1712743871417,-1065.0,0.00055,120]
[322077136,1712743871427,-10489.80099648,0.00055,120]
[322077137,1712743871437,-15448.0,0.00055,120]
[322077138,1712743871446,-226.0,0.00055,27]
[322077139,1712743871456,-150.0,0.00055,120]
[322077140,1712743871465,-7098.59069766,0.00055,15]
[322077141,1712743871474,-1516.0,0.00055,120]
[322077142,1712743871484,-14004.89188204,0.00055,15]
[322077143,1712743871493,-1028.0,0.00055,120]
[322077144,1712743871503,-1000.0,0.00055,2]
[322077145,1712743871512,-160.59003159,0.00055,120]
[322077146,1712743871522,-1000.0,0.00055,30]
[322077147,1712743871531,-10000.0,0.00055,120]
[322077148,1712743871541,-26198.17527191,0.00055,30]
[322077149,1712743871566,-5171.7986065,0.00055,30]
[322077150,1712743871654,-156.91,0.00029,2]
[322077151,1712743871663,-156.91,0.00029,2]
[322077152,1712743871673,-156.91,0.00029,2]
[322077153,1712743871682,-156.91,0.00029,2]
[322077154,1712743871692,-156.91,0.00029,2]
[322077155,1712743871702,-156.91,0.00029,2]
[322077156,1712743871711,-156.91,0.00029,2]
[322077157,1712743871720,-104.01978377,0.00029,2]
[322077158,1712743871737,-52.89021623,0.00029,2]
[322077159,1712743871746,-156.91,0.00029,2]
[322077160,1712743871755,-156.91,0.00029,2]
[322077161,1712743871764,-156.91,0.00029,2]
[322077162,1712743871774,-156.91,0.00029,2]
[322077163,1712743871783,-156.91,0.00029,2]
[322077164,1712743871792,-156.91,0.00029,2]
[322077165,1712743871802,-156.91,0.00029,2]
[322077166,1712743871811,-156.91,0.00029,2]
[322077167,1712743871820,-156.91,0.00029,2]
[322077168,1712743871831,-156.91,0.00029,2]
[322077169,1712743871848,-156.91,0.00029,2]
[322077170,1712743871862,-156.91,0.00029,2]
[322077171,1712743871872,-99329.05630074,0.00055,30]
[322077172,1712743872005,-1291.37360342,0.00019375,2]
[322077173,1712743872015,-294.09096038,0.00020396,2]
[322077174,1712743992446,181.67,0.00016712,2]
[322077175,1712744078660,9983.22,0.00020877,60]
[322077176,1712744169373,160.32,0.00015896,2]
[322077177,1712744196746,1613.0,0.0003,25]
[322077180,1712744278545,155.55485798,0.00017473,2]
[322077181,1712744640190,159.13,0.00016807,2]
[322077182,1712744640962,181.67,0.00016712,2]
[322077184,1712744748698,-6870.67649419,0.00018362,2]
[322077185,1712744748719,-155.0,0.0001846,2]
[322077186,1712744748743,-1204.0,0.00018461,2]
[322077187,1712744748765,-1239.69945364,0.00018462,2]
[322077188,1712744748786,-155.0,0.00018462,2]
[322077189,1712744748807,-1728.04,0.00018463,2]
[322077190,1712744748829,-7486.46122109,0.00018463,2]
[322077191,1712744748850,-500.0,0.00018464,2]
[322077192,1712744748870,-661.12283108,0.00018464,2]
[322077199,1712744953426,-1000.0,0.00018455,2]
[322077200,1712744953450,-748.53241802,0.00018455,2]
[322077201,1712744953473,-155.0,0.00018456,2]
[322077202,1712744953496,-3376.0522944,0.00018457,2]
[322077203,1712744953523,-1246.05,0.00018459,2]
[322077204,1712744953546,-390.04159916,0.00018462,2]
[322077205,1712744965704,-468.64,0.00018543,2]
[322077206,1712744965729,-165.61,0.00018545,2]
[322077207,1712744965753,-1122.44,0.00018583,2]
[322077208,1712744965776,-200.0,0.00018623,2]
[322077209,1712744965801,-287.51,0.00018639,2]
[322077210,1712744965826,-1710.57,0.00018642,2]
[322077211,1712744965849,-281.74,0.00018642,2]
[322077212,1712744965874,-150.0,0.00018644,2]
[322077213,1712744965898,-1000.0,0.00018645,2]
[322077214,1712744965923,-1110.92,0.00018645,2]
[322077215,1712744965946,-502.13,0.00018698,2]
[322077216,1712744965969,-511.81,0.00018719,2]
[322077217,1712744965992,-188.78,0.00018725,2]
[322077218,1712744966015,-250.0,0.00018772,2]
[322077219,1712744966038,-500.0,0.00018772,2]
[322077220,1712744966063,-155.73045278,0.00018827,2]
[322077221,1712744966089,-155.0,0.00018828,2]
[322077222,1712744966113,-1319.37473137,0.00018828,2]
[322077223,1712744966138,-1500.0,0.00018828,2]
[322077224,1712744966162,-740.67964763,0.00018828,2]
[322077225,1712744966185,-7481.43384977,0.00018829,2]
[322077226,1712744966211,-11221.04,0.0001883,2]
[322077227,1712744966236,-155.13,0.00018838,2]
[322077228,1712744966415,1852.42,0.00018579,2]
[322077229,1712744968078,1000.0,0.00018828,2]
[322077230,1712744969601,155.0,0.00018999,2]
[322077231,1712744971526,1299.18946768,0.00018828,2]
[322077232,1712744972414,472.58143606,0.00018999,2]
[322077247,1712745031686,-300.0,0.00019,2]
[322077248,1712745031696,-155.13,0.00019165,2]
[322077249,1712745031705,-155.13,0.00019492,2]
[322077250,1712745031715,-159.13,0.00019675,2]
[322077251,1712745031724,-659.9,0.00019707,2]
[322077252,1712745031733,-659.9,0.00019714,2]
[322077253,1712745031742,-659.9,0.00019721,2]
[322077254,1712745031751,-659.9,0.00019728,2]
[322077255,1712745031760,-659.9,0.00019735,2]
[322077256,1712745031770,-659.9,0.00019742,2]
[322077257,1712745031779,-659.9,0.00019748,2]
[322077258,1712745031788,-659.9,0.00019755,2]
[322077259,1712745031797,-659.9,0.00019762,2]
[322077260,1712745031806,-505.42391194,0.00019769,2]
[322077261,1712745031986,-154.47608806,0.00019769,2]
[322077262,1712745031995,-659.9,0.00019776,2]
[322077263,1712745032004,-659.9,0.00019783,2]
[322077264,1712745032013,-659.9,0.0001979,2]
[322077265,1712745032022,-659.9,0.00019796,2]
[322077266,1712745032031,-659.9,0.00019803,2]
[322077267,1712745032040,-627.46102095,0.0001981,2]
[322077268,1712745032051,-32.43897905,0.0001981,2]
[322077269,1712745032060,-659.9,0.00019817,2]
[322077270,1712745032069,-155.13,0.00019819,2]
[322077271,1712745032078,-659.9,0.00019824,2]
[322077273,1712745032088,-659.9,0.00019831,2]
[322077276,1712745032096,-659.9,0.00019837,2]
[322077279,1712745032105,-2486.33,0.00019874,2]
[322077281,1712745032114,-155.0,0.00020294,2]
[322077283,1712745032124,-1000.0,0.00020295,2]
[322077285,1712745032132,-242.58856487,0.00020296,2]
[322077287,1712745032141,-215.55482401,0.00020296,2]
[322077288,1712745032150,-357.89962919,0.00020296,2]
[322077290,1712745032160,-1397.45798288,0.00020296,2]
[322077291,1712745032248,-7048.9,0.00020296,2]
[322077292,1712745032259,-11149.33266958,0.00020296,2]
[322077293,1712745032268,-624.22352962,0.00020296,2]
[322077294,1712745032278,-287.80060176,0.00020296,2]
[322077295,1712745032289,-156.79668832,0.00020296,2]
[322077296,1712745032300,-509.52349393,0.00020296,2]
[322077297,1712745032311,-504.30259316,0.00020296,2]
[322077298,1712745032321,-500.0,0.00020296,2]
[322077299,1712745032331,-503.92891939,0.00020296,2]
[322077300,1712745032341,-511.65292656,0.00020296,2]
[322077301,1712745032350,-500.0,0.00020296,2]
[322077302,1712745032361,-512.45510417,0.00020296,2]
[322077303,1712745032371,-500.0,0.00020296,2]
[322077304,1712745032382,-500.0,0.00020296,2]
[322077305,1712745032392,-500.0,0.00020296,2]
[322077306,1712745032402,-500.0,0.00020296,2]
[322077307,1712745032412,-306.29187551,0.00020296,2]
[322077308,1712745032426,-500.0,0.00020296,2]
[322077309,1712745032439,-259.85940966,0.00020296,2]
[322077310,1712745032449,-211.13055346,0.00020296,2]
[322077311,1712745032458,-500.0,0.00020296,2]
[322077312,1712745032468,-500.0,0.00020296,2]
[322077313,1712745032478,-500.0,0.00020296,2]
[322077314,1712745032488,-500.0,0.00020296,2]
[322077315,1712745032499,-500.0,0.00020296,2]
[322077316,1712745032508,-245000.0,0.00020297,2]
[322077317,1712745032520,-186.5433252,0.0002037,2]
[322077318,1712745032530,-1363.84362107,0.0002047,2]
[322077319,1712745032540,-200.0979775,0.0002057,2]
[322077320,1712745032550,-500.0,0.0002057,2]
[322077321,1712745032562,-165.51345273,0.0002057,2]
[322077322,1712745032573,-292.39,0.0002057,2]
[322077323,1712745032583,-184.32,0.0002057,2]
[322077324,1712745032594,-500.0,0.0002057,2]
[322077325,1712745032604,-500.0,0.0002057,2]
[322077326,1712745032614,-525.24029402,0.00020799,2]
[322077327,1712745032624,-500.0,0.00020844,2]
[322077328,1712745032634,-500.0,0.00020844,2]
[322077329,1712745032644,-1000.0,0.00020975,2]
[322077330,1712745032654,-714.96210186,0.00021,2]
[322077331,1712745032664,-155.0,0.00021,2]
[322077332,1712745032675,-250.0,0.00021,3]
[322077333,1712745032684,-188.82309542,0.00021018,2]
[322077334,1712745032694,-3242.62,0.00021056,2]
[322077335,1712745032704,-500.0,0.00021118,2]
[322077336,1712745032714,-500.0,0.00021118,2]
[322077337,1712745032725,-528.95,0.00021392,2]
[322077338,1712745032734,-433.52,0.00021392,2]
[322077339,1712745032744,-208.04017399,0.000219,2]
[322077340,1712745032754,-208.04017399,0.000219,2]
[322077341,1712745032763,-250.0,0.00021918,2]
[322077342,1712745032773,-250.0,0.00021918,2]
[322077343,1712745032783,-180.0,0.00022301,2]
[322077344,1712745032793,-189.122,0.0002252,2]
[322077345,1712745032802,-159.13,0.00022542,2]
[322077346,1712745032811,-307.07035254,0.00023,2]
[322077347,1712745032822,-1000.0,0.00023306,2]
[322077348,1712745032832,-8000.0,0.00023368,2]
[322077349,1712745032842,-19460.06407151,0.000237,2]
[322077350,1712745032852,-224.62727988,0.00024,2]
[322077351,1712745032862,-7686.13984984,0.00024498,2]
[322077352,1712745032871,-149089.15696195,0.0002469,5]
[322077353,1712745032881,-2223.73711434,0.000248,2]
[322077354,1712745032890,-159.1130507,0.00024999,2]
[322077355,1712745032900,-155.0,0.00025,2]
[322077356,1712745032909,-2603.52703539,0.00025,2]
[322077357,1712745032921,-984.29751546,0.00025,2]
[322077358,1712745032931,-1333.0,0.00025,2]
[322077359,1712745032940,-159.13,0.0002541,2]
[322077360,1712745032949,-1363.84362098,0.00025584,2]
[322077361,1712745032958,-1000.0,0.00025637,2]
[322077362,1712745032967,-287.51,0.00026095,2]
[322077363,1712745032976,-1000.0,0.00027,2]
[322077364,1712745032985,-9169.55777492,0.00027265,2]
[322077365,1712745032994,-155.0,0.00027292,2]
[322077366,1712745033003,-782.92013336,0.00027292,2]
[322077367,1712745033013,-753.91034995,0.00027292,2]
[322077368,1712745033022,-4964.56651127,0.00027292,2]
[322077369,1712745033033,-268.00982488,0.00027292,2]
[322077370,1712745033042,-355.17490237,0.00027293,2]
[322077371,1712745033053,-236.22335638,0.00027293,2]
[322077372,1712745033063,-609.51436901,0.00027294,2]
[322077373,1712745033072,-325.1640065,0.00027295,2]
[322077374,1712745033081,-984.6484223,0.00027295,2]
[322077375,1712745033090,-506.99,0.00027397,2]
[322077376,1712745033099,-1000.0,0.00027967,2]
[322077377,1712745033108,-1000.0,0.000281,2]
[322077378,1712745033117,-1000.0,0.0002815,2]
[322077379,1712745033126,-1000.0,0.000282,2]
[322077380,1712745033135,-1000.0,0.0002825,2]
[322077381,1712745033145,-159.13,0.00028277,2]
[322077382,1712745033154,-1000.0,0.000283,2]
[322077383,1712745033164,-1000.0,0.0002835,2]
[322077384,1712745033175,-1000.0,0.000284,2]
[322077385,1712745033184,-1000.0,0.0002845,2]
[322077386,1712745033193,-1000.0,0.000285,2]
[322077387,1712745033203,-1000.0,0.0002855,2]
[322077388,1712745033212,-1000.0,0.0002885,2]
[322077389,1712745033222,-1000.0,0.000289,2]
[322077390,1712745033231,-5800.0,0.00028987,2]
[322077391,1712745033240,-6744.92204359,0.00029,2]
[322077392,1712745033249,-154.56262454,0.00029003,2]
[322077393,1712745033258,-441.77418907,0.000295,3]
[322077394,1712745033267,-23722.27564431,0.0003,4]
[322077395,1712745033276,-455.35697942,0.0003,2]
[322077396,1712745033285,-594.70721441,0.0003,2]
[322077397,1712745033294,-6939.13491161,0.0003,2]
[322077398,1712745033303,-224.37683634,0.0003,4]
[322077399,1712745033312,-579.42400173,0.0003,4]
[322077400,1712745033322,-13678.519521,0.0003,4]
[322077401,1712745033335,-359.16532702,0.0003,4]
[322077402,1712745033346,-344.45253,0.0003,4]
[322077403,1712745033358,-4929.48808061,0.0003,4]
[322077404,1712745033367,-355.01191939,0.0003,4]
[322077405,1712745033379,-1934.85576351,0.0003,4]
[322077406,1712745033388,-155.0,0.0003,2]
[322077407,1712745033397,-219.25888395,0.0003,2]
[322077408,1712745033407,-448.62769266,0.0003,7]
[322077409,1712745033417,-760.85767988,0.0003,2]
[322077410,1712745033428,-14043.81266946,0.0003,2]
[322077411,1712745033437,-182.67737618,0.00030025,7]
[322077412,1712745033446,-1363.84362098,0.00030699,2]
[322077413,1712745033456,-451.3974252,0.00031,4]
[322077414,1712745033465,-159.13,0.00031145,2]
[322077415,1712745033474,-1337.4295067,0.00031809,4]
[322077416,1712745033483,-474.45223219,0.00032,4]
[322077417,1712745033492,-397.77278748,0.00032603,2]
[322077419,1712745037672,-613.41,0.00020296,2]
[322077420,1712745037683,-500.0,0.00020844,2]
[322077421,1712745037692,-9.53407473,0.00021118,2]
[322077422,1712745037747,-474.91,0.00021118,2]
[322077427,1712745038308,-43.32592527,0.00021118,2]
[322077428,1712745038318,-365.35406438,0.000247,2]
[322077429,1712745038330,-412.74721252,0.00032603,2]
[322077431,1712745038340,-66.04085754,0.00032603,2]
[322077433,1712745038351,-14317.95914246,0.00032603,2]
[322077434,1712745038360,-184.36,0.00032695,2]
[322077436,1712745038370,-150.0,0.00032877,2]
[322077438,1712745038379,-506.99,0.00033165,2]
[322077440,1712745038389,-155.0,0.00033227,7]
[322077442,1712745038398,-150.0,0.00033742,2]
[322077445,1712745038408,-159.13,0.00034012,2]
[322077446,1712745038417,-150.0,0.00034607,2]
[322077448,1712745038427,-217.599147,0.00034795,14]
[322077450,1712745038437,-1243.09117558,0.0003489,10]
[322077451,1712745038446,-181.77,0.00035288,15]
[322077453,1712745038455,-150.0,0.00035472,2]
[322077455,1712745038464,-217.599147,0.00035616,14]
[322077457,1712745038473,-186.54332517,0.00035747,2]
[322077458,1712745038481,-1363.84362098,0.00035813,2]
[322077460,1712745038490,-150.0,0.00036337,2]
[322077462,1712745038499,-217.599147,0.00036438,14]
[322077464,1712745038508,-159.13,0.0003688,2]
[322077466,1712745038522,-464.0,0.00037033,5]
[322077467,1712745038530,-150.0,0.00037203,2]
[322077468,1712745038540,-217.599147,0.0003726,14]
[322077469,1712745038549,-154.56262454,0.00037635,2]
[322077470,1712745038558,-1660.0,0.000378,2]
[322077471,1712745038567,-181.77,0.00038027,15]
[322077472,1712745038576,-150.0,0.00038068,2]